fUSD/lending_fUSD_20240407
["ID","MTS","AMOUNT","RATE_DAILY","PERIOD"]
[321729750,1712472655625,-500.0,0.00021999,2]
[321729751,1712472655634,-1372.09,0.00021999,2]
[321729752,1712472655643,-500.0,0.00021999,2]
[321729753,1712472655653,-500.0,0.00021999,2]
[321729754,1712472655662,-500.0,0.00021999,2]
[321729755,1712472655672,-500.0,0.00021999,2]
[321729756,1712472655682,-500.0,0.00021999,2]
[321729757,1712472655691,-500.0,0.00021999,2]
[321729758,1712472655701,-500.0,0.00021999,2]
[321729759,1712472655711,-699.07,0.00021999,2]
[321729760,1712472655720,-699.07,0.00021999,2]
[321729761,1712472655731,-699.07,0.00021999,2]
[321729762,1712472655741,-699.07,0.00021999,2]
[321729763,1712472655750,-699.07,0.00021999,2]
[321729764,1712472655759,-699.07,0.00021999,2]
[321729765,1712472655768,-699.07,0.00021999,2]
[321729766,1712472655778,-500.0,0.00021999,2]
[321729767,1712472655787,-500.0,0.00021999,2]
[321729768,1712472655797,-500.0,0.00021999,2]
[321729769,1712472655807,-500.0,0.00021999,2]
[321729770,1712472655817,-500.0,0.00021999,2]
[321729771,1712472655827,-500.0,0.00021999,2]
[321729772,1712472655836,-500.0,0.00021999,2]
[321729773,1712472655847,-500.0,0.00021999,2]
[321729774,1712472655856,-419.34364842,0.00021999,2]
[321729775,1712472655866,-500.0,0.00021999,2]
[321729776,1712472655875,-500.0,0.00021999,2]
[321729777,1712472655885,-500.0,0.00021999,2]
[321729778,1712472655895,-500.0,0.00021999,2]
[321729779,1712472655904,-500.0,0.00021999,2]
[321729780,1712472655914,-693.7,0.00021999,2]
[321729781,1712472655923,-500.0,0.00021999,2]
[321729782,1712472655933,-693.7,0.00021999,2]
[321729783,1712472655943,-500.0,0.00021999,2]
[321729784,1712472655952,-693.7,0.00021999,2]
[321729785,1712472655962,-693.7,0.00021999,2]
[321729786,1712472655971,-693.7,0.00021999,2]
[321729787,1712472655981,-261.49515155,0.00021999,2]
[321729788,1712472656391,-432.20484845,0.00021999,2]
[321729789,1712472656401,-500.0,0.00021999,2]
[321729790,1712472656411,-500.0,0.00021999,2]
[321729791,1712472656422,-500.0,0.00021999,2]
[321729792,1712472656431,-500.0,0.00021999,2]
[321729793,1712472656441,-500.0,0.00021999,2]
[321729794,1712472656451,-500.0,0.00021999,2]
[321729795,1712472656460,-500.0,0.00021999,2]
[321729796,1712472656470,-612.92,0.00021999,2]
[321729797,1712472656479,-612.92,0.00021999,2]
[321729798,1712472656489,-612.92,0.00021999,2]
[321729799,1712472656498,-612.92,0.00021999,2]
[321729800,1712472656507,-547.28399979,0.00021999,2]
[321729801,1712472656519,-65.63600021,0.00021999,2]
[321729802,1712472656528,-612.92,0.00021999,2]
[321729803,1712472656538,-612.92,0.00021999,2]
[321729804,1712472656547,-753.88,0.00021999,2]
[321729805,1712472656556,-753.88,0.00021999,2]
[321729806,1712472656565,-94.37692928,0.00021999,2]
[321729807,1712472656577,-659.50307072,0.00021999,2]
[321729808,1712472656586,-753.88,0.00021999,2]
[321729809,1712472656596,-753.88,0.00021999,2]
[321729810,1712472656605,-753.88,0.00021999,2]
[321729811,1712472656614,-753.88,0.00021999,2]
[321729812,1712472656624,-1631.13,0.00021999,2]
[321729813,1712472656633,-1631.13,0.00021999,2]
[321729814,1712472656642,-1631.13,0.00021999,2]
[321729815,1712472656652,-251.0775072,0.00021999,2]
[321729816,1712472656661,-1631.13,0.00021999,2]
[321729817,1712472656672,-404.66302208,0.00021999,2]
[321729818,1712472656714,-500.0,0.00021917,2]
[321729819,1712472656724,-1226.46697792,0.00021999,2]
[321729820,1712472656737,-464.56632544,0.00021999,2]
[321729821,1712472656749,-1166.56367456,0.00021999,2]
[321729822,1712472656759,-1631.13,0.00021999,2]
[321729823,1712472656768,-500.0,0.00021999,2]
[321729824,1712472656778,-807.29,0.00021999,2]
[321729825,1712472656787,-500.0,0.00021999,2]
[321729826,1712472656796,-395.94184803,0.00021999,2]
[321729827,1712472656809,-411.34815197,0.00021999,2]
[321729828,1712472656819,-500.0,0.00021999,2]
[321729829,1712472656829,-807.29,0.00021999,2]
[321729830,1712472656841,-500.0,0.00021999,2]
[321729831,1712472656855,-807.29,0.00021999,2]
[321729832,1712472656864,-500.0,0.00021999,2]
[321729833,1712472656874,-500.0,0.00021999,2]
[321729834,1712472656883,-807.29,0.00021999,2]
[321729835,1712472656893,-156.89830215,0.00021999,2]
[321729836,1712472656902,-807.29,0.00021999,2]
[321729837,1712472656911,-600.32,0.00021999,2]
[321729838,1712472656921,-600.32,0.00021999,2]
[321729839,1712472656931,-600.32,0.00021999,2]
[321729840,1712472656940,-600.32,0.00021999,2]
[321729841,1712472656949,-600.32,0.00021999,2]
[321729842,1712472656958,-600.32,0.00021999,2]
[321729843,1712472656967,-500.0,0.00021999,2]
[321729844,1712472656980,-500.0,0.00021999,2]
[321729845,1712472656989,-500.0,0.00021999,2]
[321729846,1712472656999,-500.0,0.00021999,2]
[321729847,1712472657008,-500.0,0.00021999,2]
[321729848,1712472657018,-500.0,0.00021999,2]
[321729849,1712472657027,-500.0,0.00021999,2]
[321729850,1712472657036,-500.0,0.00021999,2]
[321729851,1712472657046,-500.0,0.00021999,2]
[321729852,1712472657054,-500.0,0.00021999,2]
[321729853,1712472657064,-500.0,0.00021999,2]
[321729854,1712472657074,-500.0,0.00021999,2]
[321729855,1712472657084,-500.0,0.00021999,2]
[321729856,1712472657093,-239.11837749,0.00021999,2]
[321729857,1712472657102,-1192.52,0.00021999,2]
[321729858,1712472657112,-1192.52,0.00021999,2]
[321729859,1712472657122,-1192.52,0.00021999,2]
[321729860,1712472657131,-1192.52,0.00021999,2]
[321729861,1712472657140,-500.0,0.00021999,2]
[321729862,1712472657150,-1192.52,0.00021999,2]
[321729863,1712472657159,-629.57,0.00021999,2]
[321729864,1712472657171,-288.34953529,0.00021999,2]
[321729865,1712472657180,-1192.52,0.00021999,2]
[321729866,1712472657190,-629.57,0.00021999,2]
[321729867,1712472657200,-629.57,0.00021999,2]
[321729868,1712472657210,-629.57,0.00021999,2]
[321729869,1712472657220,-629.57,0.00021999,2]
[321729870,1712472657230,-629.57,0.00021999,2]
[321729871,1712472657240,-2634.45,0.00021999,2]
[321729872,1712472657250,-2634.45,0.00021999,2]
[321729873,1712472657260,-2634.45,0.00021999,2]
[321729874,1712472657270,-2634.45,0.00021999,2]
[321729875,1712472657279,-2634.45,0.00021999,2]
[321729876,1712472657289,-2634.45,0.00021999,2]
[321729877,1712472657299,-2634.45,0.00021999,2]
[321729878,1712472657308,-500.0,0.00021999,2]
[321729879,1712472657317,-500.0,0.00021999,2]
[321729880,1712472657327,-859.44,0.00021999,2]
[321729881,1712472657336,-500.0,0.00021999,2]
[321729882,1712472657345,-859.44,0.00021999,2]
[321729883,1712472657355,-500.0,0.00021999,2]
[321729884,1712472657364,-859.44,0.00021999,2]
[321729885,1712472657374,-500.0,0.00021999,2]
[321729886,1712472657383,-859.44,0.00021999,2]
[321729887,1712472657393,-859.44,0.00021999,2]
[321729888,1712472657402,-571.69331878,0.00021999,2]
[321729889,1712472657412,-232.10954151,0.00021999,2]
[321729890,1712472657815,-305.18607432,0.00021917,2]
[321729893,1712472704178,570.57690158,0.00019948,2]
[321729894,1712472878572,10284.22454867,0.00025,30]
[321729897,1712472979428,331.27,0.00018564,2]
[321729898,1712472983747,2182.64681432,0.0003,30]
[321729899,1712473253921,23227.55,0.0001969,2]
[321729900,1712473271946,661.23,0.0001969,2]
[321729925,1712473374491,150.0,0.0001968,2]
[321729927,1712473428555,264.45,0.00019674,2]
[321729928,1712473440643,314.7,0.0001775,2]
[321729929,1712473470958,319.02,0.00019639,2]
[321729930,1712473513769,1190.85,0.00019659,2]
[321729931,1712473590658,186.44,0.00019693,2]
[321729932,1712473609176,2010.8,0.00019693,2]
[321729933,1712473746118,697.07,0.00019628,2]
[321729934,1712473773851,440.48,0.00019628,2]
[321729947,1712473831749,-704.64333317,0.00019709,2]
[321729948,1712473831759,-210.06112711,0.0001971,2]
[321729949,1712473831768,-155.0,0.00019845,2]
[321729950,1712473831778,-158.48095014,0.00019847,2]
[321729951,1712473831787,-158.4,0.000199,2]
[321729952,1712473831796,-692.00492492,0.00019948,2]
[321729953,1712473831807,-882.33461522,0.00019948,2]
[321729954,1712473831818,-632.48029094,0.00019948,2]
[321729955,1712473831828,-158.4,0.00019965,2]
[321729956,1712473831837,-762.6179863,0.0002,2]
[321729957,1712473831846,-314.7,0.00020014,2]
[321729958,1712473831855,-158.4,0.0002003,2]
[321729959,1712473831865,-213.57,0.00020057,2]
[321729960,1712473831874,-499.99,0.00020057,2]
[321729961,1712473831884,-548.71,0.00020057,2]
[321729962,1712473831894,-158.4,0.00020095,2]
[321729963,1712473831903,-158.4,0.00020159,2]
[321729964,1712473831912,-158.48095012,0.00020198,2]
[321729965,1712473831921,-150.0,0.00020224,2]
[321729966,1712473831931,-158.4,0.00020224,2]
[321729967,1712473831940,-351.37,0.00020225,2]
[321729968,1712473831949,-157.15,0.00020271,2]
[321729969,1712473831958,-158.4,0.00020289,2]
[321729970,1712473831967,-158.4,0.00020354,2]
[321729971,1712473831976,-158.4,0.00020419,2]
[321729972,1712473831986,-158.4,0.00020483,2]
[321729973,1712473831995,-2000.0,0.000205,2]
[321729974,1712473832005,-1000.0,0.00020529,2]
[321729975,1712473832017,-158.4,0.00020548,2]
[321729976,1712473832027,-158.48095012,0.00020549,2]
[321729977,1712473832036,-620.73,0.00020549,2]
[321729978,1712473832046,-1923.84,0.00020549,2]
[321729979,1712473832055,-158.4,0.00020613,2]
[321729980,1712473832065,-158.4,0.00020678,2]
[321729981,1712473832074,-158.4,0.00020743,2]
[321729982,1712473832084,-150.99,0.00020787,2]
[321729983,1712473832094,-158.4,0.00020808,2]
[321729984,1712473832105,-158.4,0.00020872,2]
[321729985,1712473832114,-5083.43406256,0.0002089,2]
[321729986,1712473832123,-300.0,0.00020899,2]
[321729987,1712473832132,-1008.13673531,0.00020899,2]
[321729988,1712473832144,-42115.45146758,0.000209,2]
[321729989,1712473832153,-1569.0516,0.000209,2]
[321729990,1712473832162,-5692.4663,0.000209,2]
[321729991,1712473832172,-158.48095012,0.000209,2]
[321729992,1712473832182,-171.01488776,0.000209,2]
[321729993,1712473832191,-2500.0,0.000209,2]
[321729995,1712473832200,-8018.93931975,0.000209,2]
[321729996,1712473832210,-3064.46076731,0.000209,2]
[321729997,1712473832219,-158.4,0.00020937,2]
[321729998,1712473832228,-797.65,0.00020951,2]
[321729999,1712473832237,-301.91,0.00020951,2]
[321730000,1712473832246,-13158.15,0.00020951,2]
[321730001,1712473832256,-7678.232,0.00020969,2]
[321730002,1712473832266,-391.88,0.0002099,3]
[321730003,1712473832275,-2530.42765885,0.00020998,2]
[321730004,1712473832285,-155.23836145,0.00020998,2]
[321730005,1712473832294,-3662.57260147,0.00020998,2]
[321730006,1712473832304,-5810.90928265,0.00020999,2]
[321730007,1712473832313,-156.86895719,0.00020999,2]
[321730008,1712473832322,-768.67151564,0.00020999,2]
[321730009,1712473832332,-500.0,0.00020999,2]
[321730010,1712473832341,-382.76842817,0.00020999,2]
[321730011,1712473832350,-189.84724871,0.00020999,2]
[321730012,1712473832359,-337790.74658221,0.00021,2]
[321730013,1712473832372,-82982.30087,0.00021,2]
[321730014,1712473832383,-37754.38299349,0.00021,2]
[321730015,1712473832394,-1450.0,0.00021,3]
[321730016,1712473832403,-171.01488775,0.00021125,2]
[321730017,1712473832413,-8018.93931967,0.00021344,2]
[321730018,1712473832422,-3064.46076731,0.00021344,2]
[321730019,1712473832431,-171.01488775,0.0002135,2]
[321730020,1712473832441,-171.01488775,0.00021575,2]
[321730021,1712473832450,-7266.73064632,0.00021643,2]
[321730022,1712473832459,-404.07,0.00021736,2]
[321730023,1712473832469,-172.91497,0.0002178,2]
[321730024,1712473832478,-8018.93931967,0.00021789,2]
[321730025,1712473832487,-3064.46076731,0.00021789,2]
[321730026,1712473832497,-201.66610028,0.0002179,2]
[321730027,1712473832505,-2021.78,0.000218,2]
[321730028,1712473832514,-1000.0,0.000218,2]
[321730029,1712473832524,-2023.0039,0.000218,2]
[321730030,1712473832533,-909.9299,0.000218,2]
[321730031,1712473832542,-7500.0,0.000218,2]
[321730032,1712473832551,-171.01488775,0.000218,2]
[321730033,1712473832561,-1362.27488658,0.00021807,2]
[321730034,1712473832570,-4569.43262731,0.00021896,2]
[321730035,1712473832579,-6106.75456464,0.000219,2]
[321730036,1712473832588,-13205.65012927,0.000219,2]
[321730037,1712473832597,-25425.31818797,0.000219,2]
[321730073,1712473837646,-319.78675636,0.000209,2]
[321730076,1712473837657,-1251.48205117,0.000219,2]
[321730084,1712473837699,-1641.02539894,0.000219,2]
[321730093,1712473837766,-352.06868592,0.000219,2]
[321730094,1712473837864,-10423.850798,0.000219,2]
[321730095,1712473837919,-2778.09211865,0.000219,2]
[321730096,1712473837934,-18322.55991188,0.000219,2]
[321730097,1712473837974,-3672.52531356,0.000219,2]
[321730098,1712473837985,-1084.40974767,0.000219,2]
[321730121,1712473839900,-262.08803518,0.000219,2]
[321730125,1712473842489,-319.78675626,0.00021264,2]
[321730126,1712473842499,-151.34118026,0.00021817,2]
[321730127,1712473842509,-216.12206348,0.000219,2]
[321730128,1712473842541,-5377.09083916,0.000219,2]
[321730135,1712473842602,-30890.63800154,0.000219,2]
[321730152,1712473842775,-148302.72884688,0.000219,2]
[321730154,1712473842784,-885.11383396,0.000219,2]
[321730156,1712473842794,-469.1586798,0.000219,2]
[321730157,1712473842803,-228.18440236,0.000219,2]
[321730158,1712473842812,-4087.21939508,0.000219,2]
[321730159,1712473842821,-604.50605254,0.00021916,2]
[321730160,1712473842831,-500.0,0.00021917,2]
[321730161,1712473842840,-500.0,0.00021917,2]
[321730162,1712473842849,-500.0,0.00021917,2]
[321730163,1712473842858,-500.0,0.00021917,2]
[321730165,1712473842868,-500.0,0.00021917,2]
[321730166,1712473842877,-500.0,0.00021917,2]
[321730167,1712473842887,-500.0,0.00021917,2]
[321730168,1712473842896,-500.0,0.00021917,2]
[321730169,1712473842906,-500.0,0.00021917,2]
[321730170,1712473842915,-314.29917387,0.00021917,2]
[321730171,1712473842924,-507.27344211,0.00021917,2]
[321730172,1712473842933,-500.0,0.00021917,2]
[321730173,1712473842942,-500.0,0.00021917,2]
[321730174,1712473842951,-500.0,0.00021917,2]
[321730175,1712473842960,-500.0,0.00021917,2]
[321730176,1712473842969,-500.0,0.00021917,2]
[321730177,1712473842978,-500.0,0.00021917,2]
[321730178,1712473842987,-500.0,0.00021917,2]
[321730179,1712473842996,-500.0,0.00021917,2]
[321730180,1712473843006,-500.0,0.00021917,2]
[321730181,1712473843018,-500.0,0.00021917,2]
[321730182,1712473843027,-500.0,0.00021917,2]
[321730183,1712473843036,-500.0,0.00021917,2]
[321730184,1712473843045,-500.0,0.00021917,2]
[321730185,1712473843054,-500.0,0.00021917,2]
[321730186,1712473843063,-500.0,0.00021917,2]
[321730187,1712473843072,-500.0,0.00021917,2]
[321730188,1712473843081,-500.0,0.00021917,2]
[321730189,1712473843092,-500.0,0.00021917,2]
[321730190,1712473843101,-500.0,0.00021917,2]
[321730191,1712473843110,-500.0,0.00021917,2]
[321730192,1712473843119,-548.01940863,0.00021917,2]
[321730193,1712473843127,-500.0,0.00021917,2]
[321730194,1712473843136,-494.8541985,0.00021917,2]
[321730195,1712473843145,-500.0,0.00021917,2]
[321730196,1712473843155,-500.0,0.00021917,2]
[321730197,1712473843164,-500.0,0.00021917,2]
[321730198,1712473843173,-500.0,0.00021917,2]
[321730199,1712473843181,-500.0,0.00021917,2]
[321730200,1712473843191,-500.0,0.00021917,2]
[321730201,1712473843200,-500.0,0.00021917,2]
[321730202,1712473843210,-500.0,0.00021917,2]
[321730203,1712473843219,-500.0,0.00021917,2]
[321730204,1712473843229,-500.0,0.00021917,2]
[321730205,1712473843238,-500.0,0.00021917,2]
[321730206,1712473843247,-500.0,0.00021917,2]
[321730207,1712473843258,-500.0,0.00021917,2]
[321730208,1712473843267,-500.0,0.00021917,2]
[321730209,1712473843276,-500.0,0.00021917,2]
[321730210,1712473843285,-500.0,0.00021917,2]
[321730211,1712473843295,-500.0,0.00021917,2]
[321730213,1712473843304,-500.0,0.00021917,2]
[321730214,1712473843313,-500.0,0.00021917,2]
[321730216,1712473843322,-500.0,0.00021917,2]
[321730218,1712473843331,-500.0,0.00021917,2]
[321730220,1712473843339,-500.0,0.00021917,2]
[321730222,1712473843348,-500.0,0.00021917,2]
[321730224,1712473843357,-356.99774206,0.00021917,2]
[321730226,1712473843366,-500.0,0.00021917,2]
[321730228,1712473843375,-500.0,0.00021917,2]
[321730230,1712473843384,-500.0,0.00021917,2]
[321730232,1712473843393,-500.0,0.00021917,2]
[321730234,1712473843403,-500.0,0.00021917,2]
[321730236,1712473843412,-500.0,0.00021917,2]
[321730238,1712473843421,-500.0,0.00021917,2]
[321730240,1712473843430,-500.0,0.00021917,2]
[321730242,1712473843439,-500.0,0.00021917,2]
[321730244,1712473843448,-500.0,0.00021917,2]
[321730246,1712473843456,-500.0,0.00021917,2]
[321730249,1712473843466,-500.0,0.00021917,2]
[321730251,1712473843475,-500.0,0.00021917,2]
[321730253,1712473843484,-500.0,0.00021917,2]
[321730255,1712473843493,-367.82501747,0.00021917,2]
[321730257,1712473843502,-500.0,0.00021917,2]
[321730259,1712473843511,-500.0,0.00021917,2]
[321730261,1712473843520,-500.0,0.00021917,2]
[321730262,1712473843529,-500.0,0.00021917,2]
[321730265,1712473843539,-500.0,0.00021917,2]
[321730266,1712473843547,-500.0,0.00021917,2]
[321730267,1712473843556,-500.0,0.00021917,2]
[321730268,1712473843565,-500.0,0.00021917,2]
[321730269,1712473843574,-382.5500264,0.00021917,2]
[321730270,1712473843583,-500.0,0.00021917,2]
[321730271,1712473843592,-500.0,0.00021917,2]
[321730272,1712473843601,-500.0,0.00021917,2]
[321730273,1712473843610,-500.0,0.00021917,2]
[321730274,1712473843619,-500.0,0.00021917,2]
[321730275,1712473843628,-500.0,0.00021917,2]
[321730276,1712473843636,-500.0,0.00021917,2]
[321730277,1712473843645,-500.0,0.00021917,2]
[321730278,1712473843655,-197.89231906,0.00021917,2]
[321730280,1712473843664,-500.0,0.00021917,2]
[321730282,1712473843673,-417.04808848,0.00021917,2]
[321730284,1712473843682,-500.0,0.00021917,2]
[321730286,1712473843691,-500.0,0.00021917,2]
[321730288,1712473843701,-500.0,0.00021917,2]
[321730290,1712473843710,-500.0,0.00021917,2]
[321730292,1712473843719,-500.0,0.00021917,2]
[321730294,1712473843728,-500.0,0.00021917,2]
[321730296,1712473843737,-500.0,0.00021917,2]
[321730298,1712473843746,-500.0,0.00021917,2]
[321730300,1712473843755,-500.0,0.00021917,2]
[321730302,1712473843765,-500.0,0.00021917,2]
[321730304,1712473843774,-500.0,0.00021917,2]
[321730306,1712473843783,-500.0,0.00021917,2]
[321730308,1712473843791,-500.0,0.00021917,2]
[321730310,1712473843800,-500.0,0.00021917,2]
[321730312,1712473843810,-601.40897762,0.00021917,2]
[321730314,1712473843819,-546.57,0.00021917,2]
[321730316,1712473843828,-546.57,0.00021917,2]
[321730318,1712473843838,-546.57,0.00021917,2]
[321730320,1712473843849,-546.57,0.00021917,2]
[321730322,1712473843858,-500.0,0.00021917,2]
[321730324,1712473843867,-500.0,0.00021917,2]
[321730326,1712473843876,-500.0,0.00021917,2]
[321730347,1712473844059,-500.0,0.00021917,2]
[321730349,1712473844068,-500.0,0.00021917,2]
[321730351,1712473844078,-500.0,0.00021917,2]
[321730353,1712473844087,-500.0,0.00021917,2]
[321730355,1712473844096,-500.0,0.00021917,2]
[321730357,1712473844105,-500.0,0.00021917,2]
[321730359,1712473844114,-500.0,0.00021917,2]
[321730361,1712473844124,-500.0,0.00021917,2]
[321730363,1712473844133,-500.0,0.00021917,2]
[321730365,1712473844142,-500.0,0.00021917,2]
[321730367,1712473844151,-500.0,0.00021917,2]
[321730369,1712473844160,-500.0,0.00021917,2]
[321730371,1712473844169,-500.0,0.00021917,2]
[321730373,1712473844178,-500.0,0.00021917,2]
[321730375,1712473844187,-500.0,0.00021917,2]
[321730377,1712473844196,-154.25344765,0.00021917,2]
[321730402,1712473844419,-345.74655235,0.00021917,2]
[321730404,1712473844429,-500.0,0.00021917,2]
[321730406,1712473844438,-500.0,0.00021917,2]
[321730408,1712473844447,-500.0,0.00021917,2]
[321730410,1712473844457,-592.27,0.00021917,2]
[321730412,1712473844466,-592.27,0.00021917,2]
[321730414,1712473844475,-592.27,0.00021917,2]
[321730416,1712473844484,-592.27,0.00021917,2]
[321730418,1712473844494,-500.0,0.00021917,2]
[321730420,1712473844503,-500.0,0.00021917,2]
[321730422,1712473844513,-500.0,0.00021917,2]
[321730424,1712473844522,-500.0,0.00021917,2]
[321730426,1712473844531,-500.0,0.00021917,2]
[321730428,1712473844541,-500.0,0.00021917,2]
[321730430,1712473844550,-500.0,0.00021917,2]
[321730432,1712473844559,-1779.16,0.00021917,2]
[321730434,1712473844568,-500.0,0.00021917,2]
[321730436,1712473844577,-628.87,0.00021917,2]
[321730438,1712473844586,-1779.16,0.00021917,2]
[321730440,1712473844595,-628.87,0.00021917,2]
[321730442,1712473844604,-1779.16,0.00021917,2]
[321730444,1712473844613,-1124.35348928,0.00021917,2]
[321730446,1712473844624,-654.80651072,0.00021917,2]
[321730448,1712473844633,-111.22248039,0.00021917,2]
[321730450,1712473844645,-517.64751961,0.00021917,2]
[321730452,1712473844654,-628.87,0.00021917,2]
[321730454,1712473844663,-188.57606535,0.00021917,2]
[321730457,1712473844681,-311.42393465,0.00021917,2]
[321730459,1712473844690,-83.89336901,0.00021917,2]
[321730461,1712473844702,-416.10663099,0.00021917,2]
[321730463,1712473844712,-500.0,0.00021917,2]
[321730465,1712473844720,-500.0,0.00021917,2]
[321730467,1712473844730,-5293.31,0.00021917,2]
[321730469,1712473844739,-5293.31,0.00021917,2]
[321730471,1712473844747,-5293.31,0.00021917,2]
[321730473,1712473844756,-5293.31,0.00021917,2]
[321730475,1712473844766,-1751.0,0.00021917,2]
[321730477,1712473844775,-1751.0,0.00021917,2]
[321730479,1712473844784,-1751.0,0.00021917,2]
[321730481,1712473844793,-1751.0,0.00021917,2]
[321730483,1712473844802,-1164.23,0.00021917,2]
[321730485,1712473844811,-1164.23,0.00021917,2]
[321730487,1712473844820,-1164.23,0.00021917,2]
[321730489,1712473844829,-1164.23,0.00021917,2]
[321730491,1712473844838,-500.0,0.00021917,2]
[321730493,1712473844847,-500.0,0.00021917,2]
[321730495,1712473844856,-500.0,0.00021917,2]
[321730497,1712473844865,-500.0,0.00021917,2]
[321730499,1712473844875,-500.0,0.00021917,2]
[321730501,1712473844884,-500.0,0.00021917,2]
[321730503,1712473844893,-500.0,0.00021917,2]
[321730505,1712473844903,-500.0,0.00021917,2]
[321730506,1712473844912,-500.0,0.00021917,2]
[321730507,1712473844921,-500.0,0.00021917,2]
[321730508,1712473844930,-500.0,0.00021917,2]
[321730509,1712473844939,-500.0,0.00021917,2]
[321730510,1712473844949,-500.0,0.00021917,2]
[321730511,1712473844958,-500.0,0.00021917,2]
[321730512,1712473844967,-500.0,0.00021917,2]
[321730513,1712473844977,-500.0,0.00021917,2]
[321730514,1712473844988,-500.0,0.00021917,2]
[321730515,1712473844998,-500.0,0.00021917,2]
[321730516,1712473845010,-500.0,0.00021917,2]
[321730517,1712473845021,-500.0,0.00021917,2]
[321730518,1712473845030,-500.0,0.00021917,2]
[321730519,1712473845042,-500.0,0.00021917,2]
[321730520,1712473845052,-500.0,0.00021917,2]
[321730521,1712473845061,-484.33957433,0.00021917,2]
[321730522,1712473845071,-500.0,0.00021917,2]
[321730523,1712473845083,-500.0,0.00021917,2]
[321730524,1712473845093,-500.0,0.00021917,2]
[321730525,1712473845104,-352.5697075,0.00021917,2]
[321730526,1712473845113,-170.9951991,0.00021917,2]
[321730527,1712473845123,-500.0,0.00021917,2]
[321730528,1712473845132,-500.0,0.00021917,2]
[321730529,1712473845141,-500.0,0.00021917,2]
[321730530,1712473845151,-500.0,0.00021917,2]
[321730531,1712473845160,-747.6,0.00021917,2]
[321730532,1712473845169,-747.6,0.00021917,2]
[321730533,1712473845178,-747.6,0.00021917,2]
[321730534,1712473845187,-747.6,0.00021917,2]
[321730535,1712473845196,-500.0,0.00021917,2]
[321730536,1712473845206,-500.0,0.00021917,2]
[321730537,1712473845214,-500.0,0.00021917,2]
[321730538,1712473845223,-500.0,0.00021917,2]
[321730539,1712473845232,-727.06,0.00021917,2]
[321730540,1712473845242,-727.06,0.00021917,2]
[321730541,1712473845250,-727.06,0.00021917,2]
[321730542,1712473845260,-727.06,0.00021917,2]
[321730543,1712473845269,-500.0,0.00021917,2]
[321730544,1712473845278,-500.0,0.00021917,2]
[321730545,1712473845287,-500.0,0.00021917,2]
[321730546,1712473845296,-500.0,0.00021917,2]
[321730547,1712473845305,-500.0,0.00021917,2]
[321730548,1712473845314,-500.0,0.00021917,2]
[321730549,1712473845323,-500.0,0.00021917,2]
[321730550,1712473845332,-430.06619385,0.00021917,2]
[321730551,1712473845342,-653.63,0.00021917,2]
[321730552,1712473845352,-653.63,0.00021917,2]
[321730553,1712473845362,-653.63,0.00021917,2]
[321730554,1712473845371,-653.63,0.00021917,2]
[321730555,1712473845381,-500.0,0.00021917,2]